bitfinex/quotes_SOLUSD_20240918
["timestamp","ask_amount","ask_price","bid_price","bid_amount"]
[1726677338419,0.252299,128.55,128.52,11.20663452]
[1726677338594,0.252299,128.55,128.54,15.13940855]
[1726677341114,0.252299,128.55,128.54,7.35980855]
[1726677341308,0.252299,128.55,128.54,15.13940855]
[1726677341902,0.252299,128.55,128.54,7.35980855]
[1726677342096,1.81196358,128.55,128.5,30.1708913]
[1726677342300,7.7808,128.52,128.51,7.36165806]
[1726677342495,7.7808,128.52,128.47,17.43244867]
[1726677342496,31.557184,128.53,128.48,11.60088771]
[1726677342725,31.557184,128.53,128.49,15.15017075]
[1726677342928,24.3488,128.54,128.5,7.7819]
[1726677343092,16.569,128.54,128.51,7.7813]
[1726677343826,16.569,128.54,128.5,7.7819]
[1726677344192,24.3487,128.54,128.5,7.7819]
[1726677344628,7.7807,128.53,128.49,19.4563]
[1726677345194,7.7807,128.53,128.49,27.2385]
[1726677345506,16.569,128.54,128.49,27.2385]
[1726677345507,24.3488,128.54,128.49,27.2385]
[1726677346122,7.7805,128.53,128.49,27.2385]
[1726677347132,24.3488,128.54,128.5,7.7819]
[1726677347307,24.3488,128.54,128.5,9.33815659]
[1726677347626,24.3488,128.54,128.5,7.7819]
[1726677348725,7.7803,128.53,128.49,27.2388]
[1726677349831,7.7809,128.52,128.49,19.4563]
[1726677350018,7.7805,128.53,128.49,19.4563]
[1726677350636,7.7805,128.53,128.49,27.2386]
[1726677350809,24.3488,128.54,128.49,28.79505802]
[1726677351403,24.3488,128.54,128.5,7.782]
[1726677351614,16.569,128.54,128.52,7.7807]
[1726677351820,0.252299,128.55,128.52,7.7807]
[1726677352132,8.031499,128.55,128.51,27.2346]
[1726677352745,7.7796,128.54,128.51,19.4532]
[1726677353951,7.7803,128.53,128.49,7.7823]
[1726677354146,7.7808,128.52,128.48,27.2399]
[1726677354524,0.252299,128.55,128.48,27.2399]
[1726677354525,7.7805,128.53,128.49,7.7826]
[1726677357446,7.7805,128.53,128.49,9.33893437]
[1726677357655,7.7805,128.53,128.5,7.782]
[1726677357859,7.7799,128.54,128.5,7.782]
[1726677358229,7.7799,128.54,128.51,9.33765847]
[1726677358531,7.7799,128.54,128.5,27.2369]
[1726677360432,7.7799,128.54,128.51,7.7814]
[1726677360755,0.252299,128.55,128.54,7.7796]
[1726677361059,0.252299,128.55,128.54,9.33538648]
[1726677361234,0.252299,128.55,128.54,40.918491]
[1726677361433,0.252299,128.55,128.54,47.364591]
[1726677362348,0.252299,128.55,128.54,71.141475]
[1726677363331,0.252299,128.55,128.54,69.58568852]
[1726677364529,0.252299,128.55,128.54,8.15607]
[1726677365855,0.252299,128.55,128.54,40.91821536]
[1726677369153,0.252299,128.55,128.54,64.69509936]
[1726677371173,0.252299,128.55,128.54,63.13958852]
[1726677371543,0.252299,128.55,128.54,64.69472865]
[1726677380649,0.252299,128.55,128.54,63.13958852]
[1726677381083,0.252299,128.55,128.54,64.69460345]
[1726677381458,0.252299,128.55,128.54,63.13958852]
[1726677384975,0.252299,128.55,128.54,63.01409852]
[1726677385148,0.252299,128.55,128.54,64.5692846]
[1726677386464,0.252299,128.55,128.54,84.1438746]
[1726677390487,0.252299,128.55,128.54,82.58868852]
[1726677393265,0.252299,128.55,128.54,84.14391382]
[1726677393878,0.252299,128.55,128.54,82.58868852]
[1726677395175,0.252299,128.55,128.54,84.14391367]
[1726677395356,0.252299,128.55,128.54,82.58868852]
[1726677397483,0.252299,128.55,128.54,84.14390491]
[1726677398084,0.252299,128.55,128.54,82.58868852]
[1726677398672,0.252299,128.55,128.54,84.14387879]
[1726677399160,0.252299,128.55,128.54,82.58868852]
[1726677401966,0.252299,128.59,128.55,94.153354]
[1726677402281,0.252299,128.59,128.58,38.80340452]
[1726677404388,0.252299,128.59,128.58,40.35831104]
[1726677405368,0.252299,128.59,128.58,38.80340452]
[1726677406269,0.252299,128.59,128.58,27.59677]
[1726677406513,0.252299,128.59,128.58,38.80340452]
[1726677407279,0.252299,128.59,128.58,27.59677]
[1726677407675,0.252299,128.59,128.56,7.7779]
[1726677407870,0.252299,128.59,128.57,7.7778]
[1726677409485,0.252299,128.59,128.58,8.15367]
[1726677409689,0.252299,128.59,128.58,9.7088953]
[1726677409901,0.252299,128.59,128.58,40.91534641]
[1726677410595,0.252299,128.59,128.58,64.69223041]
[1726677411172,0.252299,128.59,128.58,63.13718852]
[1726677412986,0.252299,128.59,128.58,28.15367]
[1726677413177,0.252299,128.59,128.58,39.36030452]
[1726677414002,0.252299,128.59,128.58,64.69211673]
[1726677414988,0.252299,128.59,128.58,39.36030452]
[1726677415496,0.252299,128.59,128.58,40.91520661]
[1726677415697,0.252299,128.59,128.58,39.36030452]
[1726677416603,0.252299,128.59,128.58,64.69205547]
[1726677417089,0.252299,128.59,128.58,63.13718852]
[1726677420202,0.252299,128.59,128.58,28.15367]
[1726677420407,0.252299,128.59,128.58,27.7772]
[1726677420707,0.252299,128.59,128.58,7.7772]
[1726677420907,0.252299,128.59,128.55,7.7785]
[1726677422315,8.028999,128.59,128.55,0.12549]
[1726677422601,8.028999,128.59,128.55,7.90439]
[1726677423178,0.252299,128.59,128.56,7.7783]
[1726677424103,0.252299,128.59,128.57,8.15397]
[1726677424278,0.252299,128.59,128.58,1.55520303]
[1726677424598,0.252299,128.59,128.58,20.79001755]
[1726677424901,0.252299,128.59,128.58,9.58338303]
[1726677425877,0.252299,128.59,128.58,9.70887303]
[1726677429411,0.252299,128.59,128.58,8.15367]
[1726677431294,0.252299,128.59,128.58,19.36030452]
[1726677432787,0.252299,128.59,128.58,20.91535079]
[1726677433014,0.252299,128.59,128.58,19.36030452]
[1726677433911,0.252299,128.59,128.58,8.15367]
[1726677435599,0.252299,128.59,128.58,9.70871908]
[1726677435800,0.252299,128.59,128.58,8.15367]
[1726677439813,0.252299,128.59,128.58,19.36030452]
[1726677440808,0.252299,128.59,128.58,38.80340452]
[1726677441395,0.252299,128.59,128.58,19.81957]
[1726677441710,0.252299,128.59,128.58,27.59677]
[1726677445621,0.252299,128.59,128.58,27.47128]
[1726677445917,0.252299,128.59,128.56,7.7783]
[1726677450000,0.252299,128.59,128.56,7.90389]
[1726677460432,0.252299,128.59,128.57,7.7778]
[1726677460616,0.252299,128.59,128.57,20.99958691]
[1726677461022,0.252299,128.59,128.58,19.36030452]
[1726677461611,0.252299,128.59,128.58,8.15367]
[1726677462433,0.252299,128.59,128.58,7.7772]
[1726677466530,0.252299,128.59,128.58,9.58331128]
[1726677466917,0.252299,128.59,128.58,8.02818]
[1726677467327,0.252299,128.59,128.58,8.15367]
[1726677471919,0.252299,128.59,128.58,8.02818]
[1726677475454,0.252299,128.59,128.58,9.70875361]
[1726677475658,0.252299,128.59,128.58,8.15367]
[1726677476226,0.252299,128.59,128.58,8.02818]
[1726677477351,0.252299,128.59,128.57,19.4442]
[1726677478249,0.252299,128.59,128.57,27.2219]
[1726677480650,0.252299,128.59,128.55,0.25098]
[1726677480860,0.252299,128.59,128.55,0.37647]
[1726677481230,0.252299,128.59,128.56,7.7784]
[1726677483264,0.252299,128.59,128.56,27.2245]
[1726677484533,0.252299,128.59,128.57,7.7778]
[1726677486861,0.252299,128.59,128.58,7.7772]
[1726677489628,0.252299,128.59,128.58,27.34579]
[1726677489845,0.252299,128.59,128.58,27.59677]
[1726677490031,0.252299,128.59,128.58,29.15184577]
[1726677490334,0.252299,128.59,128.58,58.80340452]
[1726677490536,0.252299,128.59,128.58,60.35847674]
[1726677490759,0.252299,128.59,128.58,84.13536074]
[1726677491335,0.252299,128.59,128.58,82.58028852]
[1726677495958,0.252299,128.59,128.58,84.13512366]
[1726677496160,0.252299,128.63,128.62,7.7748]
[1726677496361,0.252299,128.63,128.62,58.79500452]
[1726677498831,0.252299,128.63,128.62,149.97182108]
[1726677500538,0.252299,128.63,128.62,138.76518656]
[1726677500766,0.252299,128.63,128.62,149.97182108]
[1726677501749,0.252299,128.67,128.66,27.57987]
[1726677502067,0.252299,128.67,128.66,38.78650452]
[1726677502555,0.252299,128.67,128.66,0.37647]
[1726677502764,0.252299,128.67,128.66,8.14887]
[1726677503347,0.252299,128.67,128.66,19.35550452]
[1726677503753,0.252299,128.67,128.66,20.90960886]
[1726677503956,0.252299,128.67,128.66,40.90960886]
[1726677504648,0.252299,128.67,128.66,39.35550452]
[1726677506641,0.252299,128.67,128.66,40.90957845]
[1726677506846,0.252299,128.67,128.66,39.35550452]
[1726677507164,0.252299,128.67,128.66,40.9095771]
[1726677508352,0.252299,128.67,128.66,39.35550452]
[1726677509450,0.252299,128.67,128.66,40.90948781]
[1726677509653,0.252299,128.67,128.66,63.13238852]
[1726677510975,0.252299,128.67,128.66,39.35550452]
[1726677512955,0.252299,128.67,128.66,40.90950526]
[1726677513266,0.252299,128.67,128.66,39.35550452]
[1726677514747,0.252299,128.67,128.66,7.7724]
[1726677515266,0.252299,128.67,128.66,9.32666776]
[1726677516257,0.252299,128.67,128.66,39.35550452]
[1726677517255,0.252299,128.67,128.66,28.14887]
[1726677517971,0.252299,128.67,128.66,40.9096676]
[1726677518178,0.252299,128.67,128.66,39.35550452]
[1726677518673,0.252299,128.67,128.66,28.14887]
[1726677518855,0.252299,128.67,128.66,29.7029044]
[1726677519056,0.252299,128.67,128.66,40.90953892]
[1726677519663,0.252299,128.67,128.66,39.35550452]
[1726677520868,0.252299,128.67,128.66,114.68633158]
[1726677521079,0.252299,128.67,128.66,89.35550452]
[1726677522781,0.252299,128.67,128.66,114.68629972]
[1726677523079,0.252299,128.67,128.66,123.94199915]
[1726677523586,0.252299,128.71,128.66,123.94199915]
[1726677523587,0.252299,128.71,128.7,66.045]
[1726677523881,0.252299,128.71,128.7,121.40498852]
[1726677524054,0.252299,128.71,128.7,171.40498852]
[1726677524674,0.252299,128.71,128.7,160.198354]
[1726677524874,0.252299,128.71,128.7,171.40498852]
[1726677527781,0.252299,128.71,128.7,121.40498852]
[1726677528161,0.252299,128.71,128.7,86.17049]
[1726677528357,0.252299,128.71,128.7,148.93067818]
[1726677528562,0.252299,128.71,128.7,147.37712452]
[1726677529374,0.252299,128.71,128.7,171.40498852]
[1726677529667,0.252299,128.71,128.7,121.40498852]
[1726677530371,0.252299,128.75,128.7,176.31838852]
[1726677530577,0.252299,128.75,128.74,110.177654]
[1726677530770,0.252299,128.75,128.74,97.60740452]
[1726677530968,0.252299,128.75,128.74,58.76950452]
[1726677533674,0.252299,128.75,128.74,47.56287]
[1726677534160,0.252299,128.75,128.74,47.43738]
[1726677534884,0.252299,128.75,128.74,27.1864]
[1726677536669,0.252299,128.75,128.74,58.76950452]
[1726677537689,0.252299,128.75,128.74,132.54638852]
[1726677538275,0.252299,128.75,128.74,134.09925253]
[1726677538475,0.252299,128.75,128.74,132.54638852]
[1726677539783,0.252299,128.79,128.78,132.53798852]
[1726677540158,0.252299,128.79,128.78,134.09034633]
[1726677540364,0.252299,128.79,128.78,58.76110452]
[1726677540578,0.252299,128.79,128.78,47.55447]
[1726677540977,0.252299,128.79,128.78,58.76110452]
[1726677542186,0.252299,128.79,128.78,132.53798852]
[1726677542782,0.252299,128.79,128.78,134.09034618]
[1726677543682,0.252299,128.82,128.81,82.53168852]
[1726677544884,0.252299,128.82,128.81,58.75480452]
[1726677545585,0.252299,128.82,128.81,47.54817]
[1726677545880,0.252299,128.82,128.81,27.54817]
[1726677546063,0.252299,128.82,128.81,27.42268]
[1726677546263,0.252299,128.82,128.81,19.4084]
[1726677546471,0.252299,128.82,128.79,7.7641]
[1726677546683,0.252299,128.82,128.81,7.7633]
[1726677547066,0.252299,128.82,128.81,18.96993452]
[1726677547571,0.252299,128.82,128.81,38.96993452]
[1726677547771,0.252299,128.82,128.81,39.09542452]
[1726677548090,8.210299,128.9,128.89,7.7585]
[1726677548091,0.2,128.9,128.89,7.7585]
[1726677548982,0.2,128.9,128.87,19.3984]
[1726677549162,0.2,128.9,128.87,27.1581]
[1726677549590,7.9581,128.9,128.87,19.3984]
[1726677549887,7.9581,128.9,128.86,7.7601]
[1726677550509,0.2,128.9,128.86,7.7601]
[1726677550676,0.2,128.9,128.87,1.55185572]
[1726677551066,0.2,128.9,128.88,19.3975]
[1726677551268,0.2,128.9,128.88,27.1566]
[1726677551480,0.2,128.9,128.86,0.12549]
[1726677551895,0.2,128.9,128.86,1.67727621]
[1726677552272,0.2,128.9,128.87,7.7596]
[1726677552481,15.7564,128.9,128.85,19.4011]
[1726677552693,23.5145,128.9,128.85,27.1615]
[1726677553878,7.7586,128.89,128.85,27.1615]
[1726677554477,23.5143,128.9,128.86,7.7601]
[1726677554690,15.7564,128.9,128.86,9.31206468]
[1726677555499,23.5147,128.9,128.85,27.1618]
[1726677555793,23.5147,128.9,128.86,7.7603]
[1726677555999,15.7564,128.9,128.87,19.3991]
[1726677556195,15.7564,128.9,128.89,7.7585]
[1726677556506,0.2,128.9,128.89,7.7585]
[1726677556973,0.2,128.9,128.87,27.1582]
[1726677557591,0.2,128.9,128.88,7.7589]
[1726677558775,0.2,128.9,128.87,19.3991]
[1726677558980,7.9582,128.9,128.86,7.7601]
[1726677559779,0.2,128.9,128.87,7.7596]
[1726677561000,0.2,128.9,128.88,7.7586]
[1726677561613,0.2,128.9,128.86,20.95212385]
[1726677561614,7.9579,128.9,128.86,27.1604]
[1726677562688,7.9579,128.9,128.86,19.4003]
[1726677562895,7.9579,128.9,128.86,27.1605]
[1726677564504,0.2,128.9,128.87,7.7595]
[1726677566305,0.2,128.9,128.86,20.95211347]
[1726677566306,0.2,128.9,128.88,7.759]
[1726677566994,0.2,128.9,128.89,9.68668092]
[1726677567589,0.2,128.9,128.89,103.46304059]
[1726677570311,0.2,128.9,128.89,101.911854]
[1726677570507,0.2,128.9,128.89,119.27456072]
[1726677572094,0.2,128.9,128.89,95.49767672]
[1726677572490,0.2,128.9,128.89,45.49767672]
[1726677572901,0.2,128.9,128.89,8.13497]
[1726677573519,0.2,128.9,128.85,19.4017]
[1726677573702,0.2,128.9,128.86,1.55178723]
[1726677573904,0.2,128.9,128.88,7.759]
[1726677574216,0.2,128.9,128.87,7.7596]
[1726677574422,0.2,128.9,128.88,1.55162095]
[1726677576503,0.2,128.9,128.88,9.31072095]
[1726677576713,0.2,128.9,128.88,7.7591]
[1726677576910,0.2,128.9,128.87,7.7595]
[1726677577110,0.2,128.9,128.88,1.55162145]
[1726677577714,0.2,128.9,128.88,9.31032145]
[1726677577900,0.2,128.9,128.89,7.7585]
[1726677578601,0.2,128.9,128.88,9.31072145]
[1726677578814,0.2,128.9,128.88,7.7591]
[1726677579006,0.2,128.9,128.88,9.31067603]
[1726677579207,0.2,128.9,128.89,7.7585]
[1726677582121,0.2,128.9,128.89,8.13497]
[1726677582424,0.2,128.9,128.89,50.92497]
[1726677582726,0.2,128.9,128.89,74.701854]
[1726677583226,0.2,128.9,128.89,76.25281903]
[1726677585211,0.2,128.9,128.89,74.701854]
[1726677585730,0.2,128.9,128.89,76.25284906]
[1726677588625,0.2,128.9,128.89,52.47597768]
[1726677588931,0.2,128.9,128.89,50.92497]
[1726677589153,0.2,128.9,128.89,52.47604674]
[1726677589437,0.2,128.9,128.89,76.25293074]
[1726677590333,0.2,128.9,128.89,76.25282767]
[1726677592421,0.2,128.9,128.89,50.92497]
[1726677594719,0.2,128.9,128.89,76.25295928]
[1726677594927,0.2,128.9,128.89,74.701854]
[1726677595122,0.2,128.9,128.89,76.25285001]
[1726677597537,0.2,128.9,128.89,74.701854]
[1726677597838,0.2,128.9,128.89,50.92497]
[1726677599046,0.2,128.9,128.89,52.47607808]
[1726677599626,0.2,128.9,128.89,50.92497]
[1726677601038,0.2,128.9,128.89,44.64967]
[1726677601346,0.2,128.9,128.89,24.64967]
[1726677602230,0.2,128.9,128.89,8.13497]
[1726677602432,0.2,128.9,128.89,7.7585]
[1726677603826,0.2,128.9,128.89,8.13497]
[1726677604925,0.2,128.9,128.89,33.46295468]
[1726677605944,0.2,128.9,128.89,8.13497]
[1726677607059,0.2,128.9,128.89,14.20817]
[1726677607254,0.387117,128.91,128.9,140.095754]
[1726677607435,0.387117,128.91,128.9,141.64664296]
[1726677607751,79.8607,128.95,128.94,27.52077]
[1726677607955,79.8607,128.95,128.94,44.88347672]
[1726677609734,79.8607,128.95,128.94,118.66036072]
[1726677610533,79.8607,128.95,128.94,94.88347672]
[1726677610732,80.1297195,128.95,128.94,94.88347672]
[1726677611051,80.1297195,128.95,128.94,27.52077]
[1726677611427,80.1297195,128.95,128.94,29.07159659]
[1726677612167,80.1297195,128.95,128.94,27.1443]
[1726677614154,80.1297195,128.95,128.93,7.7561]
[1726677614357,80.1297195,128.95,128.92,7.7563]
[1726677614539,80.1297195,128.95,128.9,38.7897]
[1726677614540,80.1297195,128.95,128.94,7.7555]
[1726677615439,80.1297195,128.95,128.93,19.39]
[1726677615644,80.1297195,128.95,128.92,7.7566]
[1726677618162,80.1297195,128.95,128.94,7.7555]
[1726677618342,80.1297195,128.95,128.93,27.1457]
[1726677619654,80.1297195,128.95,128.93,19.3897]
[1726677621058,80.1297195,128.95,128.94,7.88099]
[1726677622472,80.1297195,128.95,128.94,8.00648]
[1726677622833,80.1297195,128.95,128.94,9.55730717]
[1726677623239,80.1297195,128.95,128.94,8.00648]
[1726677623435,80.1297195,128.95,128.94,8.13197]
[1726677624852,80.1297195,128.95,128.94,7.7555]
[1726677625370,80.1297195,128.95,128.93,19.3897]
[1726677626367,80.1297195,128.95,128.93,27.1456]
[1726677626541,80.1297195,128.95,128.93,19.3897]
[1726677627247,80.1297195,128.95,128.94,25.49467672]
[1726677627667,80.1297195,128.95,128.94,8.13197]
[1726677628452,80.1297195,128.95,128.94,9.68279438]
[1726677628642,80.1297195,128.95,128.94,27.0455011]
[1726677628856,80.1297195,128.95,128.94,25.49467672]
[1726677630574,80.1297195,128.95,128.94,70.82235028]
[1726677630950,0.2569935,128.97,128.96,86.28827]
[1726677631145,0.2569935,128.97,128.96,128.97800948]
[1726677631477,0.013987,129.01,129.0,27.1317]
[1726677637978,0.013987,129.01,129.0,19.3798]
[1726677638367,0.013987,129.01,128.99,7.7521]
[1726677644879,0.013987,129.01,128.98,7.7527]
[1726677646155,1.57365158,129.01,128.95,19.3873]
[1726677646372,1.57365158,129.01,128.95,27.1417]
[1726677646373,7.7526,128.99,128.95,27.1417]
[1726677646859,7.7532,128.98,128.95,19.3873]
[1726677647067,7.7535,128.98,128.95,19.3873]
[1726677648782,7.7535,128.98,128.94,7.7552]
[1726677649077,9.31316458,128.98,128.94,7.7552]
[1726677649682,7.7535,128.98,128.94,7.7552]
[1726677652579,7.7535,128.98,128.93,7.88139]
[1726677652778,1.55966458,128.97,128.89,19.3956]
[1726677653006,7.7566,128.93,128.89,19.3956]
[1726677653283,7.7566,128.93,128.89,0.2430065]
[1726677653284,16.3777,128.93,128.89,0.2430065]
[1726677654090,7.7579,128.9,128.89,0.2430065]
[1726677655775,27.7579,128.9,128.89,0.2430065]
[1726677657288,7.7591,128.88,128.87,0.2569935]
[1726677657481,33.09564858,128.88,128.87,0.2569935]
[1726677657688,53.09564858,128.88,128.87,0.2569935]
[1726677658696,45.33654858,128.88,128.83,0.2569935]
[1726677658864,45.33654858,128.88,128.8,33.2048]
[1726677658865,7.7615,128.85,128.84,0.1463031]
[1726677661987,9.32016458,128.86,128.84,0.1463031]
[1726677662689,7.7609,128.85,128.84,0.1463031]
[1726677662863,31.34621845,128.85,128.84,0.1463031]
[1726677663271,31.34640285,128.85,128.84,0.1463031]
[1726677663682,45.86055773,128.85,128.84,0.1463031]
[1726677663893,31.34640213,128.85,128.84,0.1463031]
[1726677664066,16.83224697,128.85,128.84,0.1463031]
[1726677664692,24.2152,128.9,128.85,7.7609]
[1726677665569,24.2152,128.9,128.85,9.31287507]
[1726677665878,24.2152,128.9,128.85,7.7609]
[1726677666876,7.7586,128.89,128.85,7.7609]
[1726677668171,7.7586,128.89,128.84,27.3108031]
[1726677668501,7.7593,128.88,128.84,27.3108031]
[1726677668713,7.7587,128.89,128.85,7.7608]
[1726677669073,8.07917576,128.94,128.88,7.7588]
[1726677669380,7.7563,128.93,128.88,7.7588]
[1726677670378,7.7562,128.93,128.89,9.30992025]
[1726677670595,7.7555,128.94,128.9,7.7579]
[1726677670772,7.7555,128.94,128.89,7.7583]
[1726677671172,7.7562,128.93,128.89,7.7583]
[1726677672501,7.7556,128.94,128.89,7.7583]
[1726677672671,0.1280427,128.95,128.9,7.7577]
[1726677672874,0.1280427,128.95,128.9,1.55153987]
[1726677673097,0.1280427,128.95,128.93,7.7559]
[1726677674577,0.1280427,128.95,128.92,27.1477]
[1726677675786,0.1280427,128.95,128.92,19.3911]
[1726677676375,0.1280427,128.95,128.92,27.1476]
[1726677676985,0.1280427,128.95,128.9,7.7578]
[1726677677184,0.1280427,128.95,128.94,7.7555]
[1726677678377,0.1280427,128.95,128.93,7.756]
[1726677679600,0.1280427,128.95,128.94,7.7555]
[1726677681803,0.1280427,128.95,128.94,8.13197]
[1726677681993,0.1280427,128.95,128.94,29.21167]
[1726677682301,0.2743458,128.99,128.98,7.7531]
[1726677682903,0.2743458,128.99,128.97,19.3829]
[1726677683201,0.2743458,128.99,128.97,27.1364]
[1726677684077,0.2743458,128.99,128.95,7.7547]
[1726677685307,8.0268458,128.99,128.95,7.7547]
[1726677685986,8.0268458,128.99,128.94,48.2226]
[1726677686583,7.7531,128.98,128.94,48.2226]
[1726677686784,0.2743458,128.99,128.94,48.2228]
[1726677687077,7.7533,128.98,128.94,40.4673]
[1726677689290,7.7538,128.97,128.94,40.4673]
[1726677689492,7.7538,128.97,128.94,19.3876]
[1726677689702,7.7538,128.97,128.92,7.7565]
[1726677689895,7.7544,128.96,128.92,7.7565]
[1726677690207,7.7548,128.96,128.91,49.3492]
[1726677691008,7.7553,128.95,128.91,49.3492]
[1726677691206,7.7551,128.95,128.91,49.3493]
[1726677691409,23.776884,128.96,128.89,7.7579]
[1726677691617,23.776884,128.96,128.88,40.7761]
[1726677691995,7.7559,128.94,128.9,7.7578]
[1726677692188,7.7562,128.93,128.89,7.7583]
[1726677692803,23.776884,128.96,128.85,19.401]
[1726677692804,7.7577,128.91,128.85,19.401]
[1726677693491,7.7579,128.9,128.86,7.7601]
[1726677697412,7.7586,128.89,128.85,27.1617]
[1726677704618,7.7586,128.89,128.86,7.7602]
[1726677706011,7.7586,128.89,128.85,27.1618]
[1726677706591,7.7579,128.9,128.86,7.7598]
[1726677706903,7.7585,128.89,128.86,7.7598]
[1726677707102,7.7585,128.89,128.85,19.401]
[1726677707103,7.7585,128.89,128.85,27.1617]
[1726677709123,15.7455,128.94,128.87,19.3993]
[1726677709299,7.7565,128.93,128.89,7.7584]
[1726677710597,7.7567,128.92,128.88,7.7589]
[1726677711115,7.7562,128.93,128.89,7.7585]
[1726677711315,20.0,128.95,128.89,19.3959]
[1726677711518,7.756,128.94,128.9,7.7579]
[1726677712411,7.7562,128.93,128.89,27.1543]
[1726677712610,16.126,128.97,128.89,19.3959]
[1726677712820,16.126,128.97,128.9,1.55146355]
[1726677713017,7.7543,128.96,128.92,7.7567]
[1726677713216,7.7539,128.97,128.92,9.30787798]
[1726677713421,7.7539,128.97,128.92,7.7567]
[1726677713833,7.7544,128.96,128.92,7.7567]
[1726677714004,7.7544,128.96,128.91,27.1498]
[1726677714940,7.7549,128.95,128.91,27.1498]
[1726677715331,7.7549,128.95,128.91,19.3926]
[1726677716825,7.7549,128.95,128.91,27.1499]
[1726677718110,7.7549,128.95,128.91,19.3926]
[1726677718830,7.7556,128.94,128.91,19.3926]
[1726677719505,7.7562,128.93,128.9,16.5515]
[1726677720132,7.7557,128.94,128.9,16.5515]
[1726677721138,7.7563,128.93,128.9,16.5515]
[1726677721434,7.7563,128.93,128.89,14.1897]
[1726677721633,0.12549,128.96,128.89,6.4314]
[1726677721634,7.7568,128.92,128.89,6.4314]
[1726677721937,0.25098,128.96,128.89,6.4314]
[1726677722118,7.7563,128.93,128.89,14.1894]
[1726677723340,7.7556,128.94,128.9,7.7578]
[1726677723524,7.7562,128.93,128.89,14.1897]
[1726677724134,44.153354,128.96,128.89,6.4314]
[1726677724436,7.7563,128.93,128.89,14.1894]
[1726677724846,7.7563,128.93,128.88,20.94112835]
[1726677724847,0.2431738,128.98,128.93,19.3901]
[1726677725135,0.2431738,128.98,128.92,11.11308607]
[1726677725136,0.2431738,128.98,128.97,7.7537]
[1726677725318,0.2431738,128.98,128.97,20.54284659]
[1726677725713,0.2431738,128.98,128.97,20.79382659]
[1726677725920,0.2431738,128.98,128.97,19.24325607]
[1726677726620,0.2431738,128.98,128.97,7.87919]
[1726677727818,0.2431738,128.98,128.97,7.7537]
[1726677732019,0.2431738,128.98,128.96,24.0308]
[1726677733036,0.2431738,128.98,128.96,24.0309]
[1726677734414,0.2431738,128.98,128.95,19.3871]
[1726677734614,0.2431738,128.98,128.95,27.1417]
[1726677735017,0.2431738,128.98,128.95,19.3871]
[1726677735336,7.9962738,128.98,128.94,14.2175]
[1726677735916,7.9962738,128.98,128.94,6.4622]
[1726677736116,7.7537,128.97,128.93,7.7559]
[1726677736330,0.2431738,128.98,128.95,37.34241263]
[1726677736616,0.2431738,128.98,128.96,6.2079]
[1726677737340,0.2431738,128.98,128.97,7.87919]
[1726677737937,0.2431738,128.98,128.97,7.7537]
[1726677738939,0.2431738,128.98,128.96,25.5934]
[1726677739920,0.2431738,128.98,128.96,19.3855]
[1726677740427,0.2431738,128.98,128.96,27.1396]
[1726677741222,0.2431738,128.98,128.97,7.7537]
[1726677742148,0.2431738,128.98,128.97,9.3044713]
[1726677743221,0.2431738,128.98,128.97,7.7537]
[1726677747630,0.2431738,128.98,128.96,19.3855]
[1726677747829,0.2431738,128.98,128.96,27.1397]
[1726677749636,0.2431738,128.98,128.93,25.597]
[1726677750126,0.2431738,128.98,128.95,7.7548]
[1726677750750,7.9963738,128.98,128.94,7.7554]
[1726677751444,0.2431738,128.98,128.95,19.3871]
[1726677751735,0.2431738,128.98,128.95,27.1419]
[1726677752634,7.9964738,128.98,128.95,19.3871]
[1726677753828,7.9964738,128.98,128.94,7.7554]
[1726677754532,7.7538,128.97,128.93,13.9638]
[1726677754745,7.7538,128.97,128.93,7.7559]
[1726677755136,0.2431738,128.98,128.94,25.31037202]